fUSD/lending_fUSD_20260625
["ID","MTS","AMOUNT","RATE_DAILY","PERIOD"]
[426436966,1782388157000,311.64,9.853e-05,2]
[426436973,1782388232000,-0.52099588,0.00010187,2]
[426436975,1782388232000,-291.95325926,0.00010311,2]
[426436974,1782388232000,-311.64,0.0001027,2]
[426436972,1782388232000,-311.11900412,0.00010187,2]
[426436971,1782388232000,-311.64,0.00010103,2]
[426436970,1782388232000,-311.64,0.0001002,2]
[426436991,1782388233000,-500.0,0.00010512,2]
[426436990,1782388233000,-500.0,0.00010512,2]
[426436987,1782388233000,-500.0,0.00010512,2]
[426436982,1782388233000,-514.69,0.00010415,2]
[426436983,1782388233000,-311.64,0.00010437,2]
[426436984,1782388233000,-514.69,0.00010448,2]
[426436977,1782388233000,-267.68225,0.00010349,2]
[426436981,1782388233000,-180.03296635,0.00010382,2]
[426436985,1782388233000,-514.69,0.00010481,2]
[426436988,1782388233000,-500.0,0.00010512,2]
[426436976,1782388233000,-178.8783697,0.00010311,2]
[426436978,1782388233000,-103.67886983,0.00010354,2]
[426436979,1782388233000,-207.96113017,0.00010354,2]
[426436986,1782388233000,-500.0,0.00010512,2]
[426436989,1782388233000,-500.0,0.00010512,2]
[426436980,1782388233000,-334.65703365,0.00010382,2]
[426436994,1782388233000,-500.0,0.00010512,2]
[426436992,1782388233000,-500.0,0.00010512,2]
[426437013,1782388233000,-500.0,0.00010512,2]
[426437018,1782388233000,-500.0,0.00010513,2]
[426437016,1782388233000,-500.0,0.00010512,2]
[426437011,1782388233000,-500.0,0.00010512,2]
[426437009,1782388233000,-500.0,0.00010512,2]
[426437007,1782388233000,-500.0,0.00010512,2]
[426437020,1782388233000,-152.0,0.00010513,2]
[426437004,1782388233000,-82.74167466,0.00010512,2]
[426437001,1782388233000,-260.01629907,0.00010512,2]
[426436998,1782388233000,-157.24202627,0.00010512,2]
[426436997,1782388233000,-500.0,0.00010512,2]
[426436995,1782388233000,-500.0,0.00010512,2]
[426436993,1782388233000,-500.0,0.00010512,2]
[426437005,1782388233000,-500.0,0.00010512,2]
[426436996,1782388233000,-500.0,0.00010512,2]
[426437057,1782388234000,-514.69,0.00010613,2]
[426437059,1782388234000,-514.69,0.00010679,2]
[426437062,1782388234000,-514.69,0.00010778,2]
[426437061,1782388234000,-514.69,0.00010745,2]
[426437058,1782388234000,-514.69,0.00010646,2]
[426437063,1782388234000,-514.69,0.00010811,2]
[426437065,1782388234000,-392.73,0.00010873,2]
[426437064,1782388234000,-514.69,0.00010844,2]
[426437068,1782388234000,-514.69,0.00010943,2]
[426437070,1782388234000,-514.69,0.00010976,2]
[426437069,1782388234000,-166.66,0.00010959,2]
[426437071,1782388234000,-392.73,0.00010988,2]
[426437054,1782388234000,-514.69,0.00010547,2]
[426437060,1782388234000,-514.69,0.00010712,2]
[426437056,1782388234000,-514.69,0.0001058,2]
[426437024,1782388234000,-152.0,0.00010513,2]
[426437050,1782388234000,-311.64,0.00010521,2]
[426437072,1782388234000,-514.69,0.00011009,2]
[426437022,1782388234000,-152.0,0.00010513,2]
[426437026,1782388234000,-152.0,0.00010513,2]
[426437040,1782388234000,-420.66501945,0.00010513,2]
[426437028,1782388234000,-420.66501945,0.00010513,2]
[426437032,1782388234000,-420.66501945,0.00010513,2]
[426437052,1782388234000,-150.0,0.00010547,2]
[426437044,1782388234000,-420.66501945,0.00010513,2]
[426437035,1782388234000,-420.66501945,0.00010513,2]
[426437036,1782388234000,-420.66501945,0.00010513,2]
[426437038,1782388234000,-420.66501945,0.00010513,2]
[426437042,1782388234000,-420.66501945,0.00010513,2]
[426437046,1782388234000,-420.66501945,0.00010513,2]
[426437048,1782388234000,-514.69,0.00010514,2]
[426437030,1782388234000,-420.66501945,0.00010513,2]
[426437067,1782388234000,-514.69,0.0001091,2]
[426437086,1782388234000,-500.0,0.00011602,2]
[426437073,1782388234000,-514.69,0.00011042,2]
[426437066,1782388234000,-514.69,0.00010877,2]
[426437105,1782388234000,-3573.55195803,0.00013365,2]
[426437103,1782388234000,-8995.90069065,0.00013265,2]
[426437096,1782388234000,-216.77,0.00012703,2]
[426437100,1782388234000,-224.60734172,0.00013265,2]
[426437095,1782388234000,-232.0,0.00012525,2]
[426437097,1782388234000,-174.88,0.00012773,2]
[426437101,1782388234000,-3393.05374453,0.00013265,2]
[426437094,1782388234000,-152.0,0.00012525,2]
[426437098,1782388234000,-4477.82845867,0.00013265,2]
[426437091,1782388234000,-184.63828194,0.00012463,2]
[426437093,1782388234000,-152.0,0.00012525,2]
[426437102,1782388234000,-1337.65758948,0.00013265,2]
[426437092,1782388234000,-152.0,0.00012525,2]
[426437090,1782388234000,-150.0,0.00012385,2]
[426437099,1782388234000,-392.80638109,0.00013265,2]
[426437085,1782388234000,-392.73,0.0001156,2]
[426437087,1782388234000,-174.88,0.00011611,2]
[426437074,1782388234000,-166.66,0.00011068,2]
[426437075,1782388234000,-514.69,0.00011075,2]
[426437076,1782388234000,-392.73,0.00011102,2]
[426437077,1782388234000,-166.66,0.00011178,2]
[426437079,1782388234000,-166.66,0.00011288,2]
[426437089,1782388234000,-163.82,0.00012315,2]
[426437078,1782388234000,-392.73,0.00011217,2]
[426437083,1782388234000,-392.73,0.00011446,2]
[426437080,1782388234000,-392.73,0.00011331,2]
[426437081,1782388234000,-166.66,0.00011397,2]
[426437082,1782388234000,-306.67,0.00011446,2]
[426437084,1782388234000,-166.66,0.00011507,2]
[426437088,1782388234000,-568.37,0.00012048,2]
[426437104,1782388234000,-150580.14413886,0.00013365,2]
[426437142,1782388238000,-1500000.0,0.00013365,2]
[426437136,1782388238000,-500.0,0.00010512,2]
[426437137,1782388238000,-500.0,0.00010512,2]
[426437143,1782388238000,-14135.32031454,0.00013365,2]
[426437141,1782388238000,-1345846.30390311,0.00013365,2]
[426437140,1782388238000,-311.72,0.00010521,2]
[426437135,1782388238000,-500.0,0.00010512,2]
[426437147,1782388238000,-152.0,0.00013465,2]
[426437154,1782388238000,-576.2630964,0.00013475,2]
[426437144,1782388238000,-4477.82845865,0.00013447,2]
[426437152,1782388238000,-707.6891,0.00013465,2]
[426437148,1782388238000,-152.0,0.00013465,2]
[426437145,1782388238000,-303.99999996,0.00013465,2]
[426437146,1782388238000,-152.0,0.00013465,2]
[426437149,1782388238000,-152.0,0.00013465,2]
[426437138,1782388238000,-500.0,0.00010512,2]
[426437151,1782388238000,-152.0,0.00013465,2]
[426437139,1782388238000,-500.0,0.00010512,2]
[426437118,1782388238000,-391.49064011,0.00010512,2]
[426437129,1782388238000,-437.42468099,0.00010512,2]
[426437116,1782388238000,-500.0,0.00010512,2]
[426437117,1782388238000,-500.0,0.00010512,2]
[426437153,1782388238000,-2500.0,0.00013465,2]
[426437123,1782388238000,-500.0,0.00010512,2]
[426437120,1782388238000,-500.0,0.00010512,2]
[426437121,1782388238000,-500.0,0.00010512,2]
[426437125,1782388238000,-139.86866366,0.00010512,2]
[426437124,1782388238000,-500.0,0.00010512,2]
[426437122,1782388238000,-500.0,0.00010512,2]
[426437126,1782388238000,-360.13133634,0.00010512,2]
[426437119,1782388238000,-108.50935989,0.00010512,2]
[426437127,1782388238000,-134.884248,0.00010512,2]
[426437133,1782388238000,-500.0,0.00010512,2]
[426437130,1782388238000,-500.0,0.00010512,2]
[426437128,1782388238000,-365.115752,0.00010512,2]
[426437131,1782388238000,-500.0,0.00010512,2]
[426437132,1782388238000,-500.0,0.00010512,2]
[426437134,1782388238000,-500.0,0.00010512,2]
[426437164,1782388238000,-500.0,0.00013698,2]
[426437150,1782388238000,-152.0,0.00013465,2]
[426437158,1782388238000,-568.37,0.00013554,2]
[426437181,1782388238000,-500.0,0.00013766,2]
[426437183,1782388238000,-500.0,0.00013766,2]
[426437187,1782388238000,-500.0,0.00013766,2]
[426437189,1782388238000,-584.73237079,0.00013766,2]
[426437179,1782388238000,-500.0,0.00013766,2]
[426437198,1782388238000,-4477.82845865,0.00013992,2]
[426437192,1782388238000,-4477.82845865,0.0001381,2]
[426437191,1782388238000,-1200.0,0.000138,5]
[426437185,1782388238000,-500.0,0.00013766,2]
[426437194,1782388238000,-14135.32031453,0.00013877,2]
[426437199,1782388238000,-14135.32031453,0.00014047,2]
[426437202,1782388238000,-14135.32031453,0.00014218,2]
[426437201,1782388238000,-576.26309638,0.00014188,2]
[426437203,1782388238000,-4477.82845865,0.00014355,2]
[426437204,1782388238000,-14135.32031453,0.00014388,2]
[426437200,1782388238000,-4477.82845865,0.00014173,2]
[426437155,1782388238000,-255.0,0.00013475,2]
[426437205,1782388238000,-244.3971161,0.00014396,2]
[426437196,1782388238000,-2400.0,0.000139,5]
[426437178,1782388238000,-500.0,0.00013766,2]
[426437197,1782388238000,-500.0,0.00013947,2]
[426437168,1782388238000,-500.0,0.00013698,2]
[426437159,1782388238000,-166.42,0.00013561,2]
[426437172,1782388238000,-500.0,0.00013698,2]
[426437156,1782388238000,-219.49438601,0.00013497,2]
[426437160,1782388238000,-996.49325095,0.00013564,3]
[426437162,1782388238000,-4477.82845865,0.00013628,2]
[426437163,1782388238000,-2000.0,0.00013667,2]
[426437166,1782388238000,-500.0,0.00013698,2]
[426437177,1782388238000,-587.65139559,0.00013766,2]
[426437157,1782388238000,-14135.32031453,0.00013536,2]
[426437165,1782388238000,-500.0,0.00013698,2]
[426437161,1782388238000,-216.45114417,0.00013581,2]
[426437169,1782388238000,-500.0,0.00013698,2]
[426437173,1782388238000,-291.52007172,0.00013698,2]
[426437175,1782388238000,-200.0,0.00013699,2]
[426437167,1782388238000,-500.0,0.00013698,2]
[426437171,1782388238000,-500.0,0.00013698,2]
[426437176,1782388238000,-14135.32031453,0.00013706,2]
[426437170,1782388238000,-500.0,0.00013698,2]
[426437238,1782388239000,-3052764.97078081,0.00015,2]
[426437242,1782388239000,-171.762901,0.00015,2]
[426437243,1782388239000,-171.762901,0.00015,2]
[426437240,1782388239000,-151.0,0.00015,2]
[426437247,1782388239000,-151.0,0.00015,2]
[426437239,1782388239000,-151.0,0.00015,2]
[426437246,1782388239000,-151.0,0.00015,2]
[426437245,1782388239000,-171.762901,0.00015,2]
[426437235,1782388239000,-500.0,0.00014999,2]
[426437244,1782388239000,-171.762901,0.00015,2]
[426437237,1782388239000,-500.0,0.00014999,2]
[426437241,1782388239000,-256.654647,0.00015,2]
[426437258,1782388239000,-568.37,0.0001506,2]
[426437248,1782388239000,-151.0,0.00015,2]
[426437251,1782388239000,-151.0,0.00015,2]
[426437252,1782388239000,-151.0,0.00015,2]
[426437249,1782388239000,-151.0,0.00015,2]
[426437259,1782388239000,-3393.05374453,0.00015184,2]
[426437253,1782388239000,-702.367819,0.00015,2]
[426437257,1782388239000,-151.0,0.00015,2]
[426437256,1782388239000,-702.367819,0.00015,2]
[426437254,1782388239000,-702.367819,0.00015,2]
[426437255,1782388239000,-702.367819,0.00015,2]
[426437236,1782388239000,-500.0,0.00014999,2]
[426437262,1782388239000,-198.95181052,0.00016,2]
[426437250,1782388239000,-151.0,0.00015,2]
[426437231,1782388239000,-500.0,0.00014985,2]
[426437214,1782388239000,-6100.0,0.000148,5]
[426437227,1782388239000,-336235.1155273,0.00014956,2]
[426437261,1782388239000,-300.0,0.00016,2]
[426437210,1782388239000,-320.0,0.00014664,2]
[426437208,1782388239000,-14135.32031453,0.00014559,2]
[426437209,1782388239000,-3600.0,0.000146,5]
[426437206,1782388239000,-209.37325392,0.00014396,2]
[426437207,1782388239000,-4477.82845865,0.00014537,2]
[426437211,1782388239000,-4800.0,0.000147,5]
[426437212,1782388239000,-4477.82845865,0.00014718,2]
[426437219,1782388239000,-4477.82845865,0.000149,2]
[426437213,1782388239000,-14135.32031453,0.00014729,2]
[426437215,1782388239000,-3968.2949,0.00014856,2]
[426437220,1782388239000,-500.0,0.00014955,2]
[426437230,1782388239000,-151.0,0.00014956,2]
[426437216,1782388239000,-576.26309638,0.000149,2]
[426437222,1782388239000,-500.0,0.00014955,2]
[426437218,1782388239000,-14135.32031453,0.000149,2]
[426437217,1782388239000,-1200.0,0.000149,5]
[426437229,1782388239000,-5059.5490751,0.00014956,2]
[426437226,1782388239000,-500.0,0.00014955,2]
[426437233,1782388239000,-633.3,0.00014999,2]
[426437223,1782388239000,-500.0,0.00014955,2]
[426437225,1782388239000,-500.0,0.00014955,2]
[426437232,1782388239000,-500.0,0.00014999,2]
[426437228,1782388239000,-1427010.0544636,0.00014956,2]
[426437224,1782388239000,-500.0,0.00014955,2]
[426437234,1782388239000,-500.0,0.00014999,2]
[426437221,1782388239000,-500.0,0.00014955,2]
[426437265,1782388239000,-203.297254,0.00016438,2]
[426437292,1782388239000,-151.0,0.00019178,2]
[426437264,1782388239000,-203.297254,0.00016438,2]
[426437296,1782388239000,-151.0,0.00020223,2]
[426437295,1782388239000,-400.0,0.0002,2]
[426437298,1782388239000,-151.0,0.00020223,2]
[426437300,1782388239000,-151.0,0.00020223,2]
[426437308,1782388239000,-151.0,0.00020223,2]
[426437303,1782388239000,-151.0,0.00020223,2]
[426437309,1782388239000,-151.0,0.00020223,2]
[426437302,1782388239000,-151.0,0.00020223,2]
[426437299,1782388239000,-151.0,0.00020223,2]
[426437307,1782388239000,-151.0,0.00020223,2]
[426437304,1782388239000,-151.0,0.00020223,2]
[426437306,1782388239000,-151.0,0.00020223,2]
[426437305,1782388239000,-151.0,0.00020223,2]
[426437310,1782388239000,-151.0,0.00020223,2]
[426437312,1782388239000,-151.0,0.00020223,2]
[426437311,1782388239000,-151.0,0.00020223,2]
[426437313,1782388239000,-151.0,0.00020223,2]
[426437315,1782388239000,-151.0,0.00020223,2]
[426437314,1782388239000,-151.0,0.00020223,2]
[426437317,1782388239000,-498.08024937,0.00020802,2]
[426437316,1782388239000,-944.87,0.00020428,2]
[426437318,1782388239000,-250.0,0.00021458,2]
[426437319,1782388239000,-209.947,0.00021458,2]
[426437320,1782388239000,-221.0,0.00021458,2]
[426437271,1782388239000,-170.07,0.00017932,2]
[426437294,1782388239000,-151.0,0.00019178,2]
[426437291,1782388239000,-151.0,0.00019178,2]
[426437301,1782388239000,-151.0,0.00020223,2]
[426437288,1782388239000,-208473.80352705,0.00019,2]
[426437268,1782388239000,-568.37,0.00016566,2]
[426437293,1782388239000,-151.0,0.00019178,2]
[426437260,1782388239000,-333.67122643,0.00015221,2]
[426437266,1782388239000,-203.297254,0.00016438,2]
[426437263,1782388239000,-151.0,0.00016438,2]
[426437272,1782388239000,-441.52752205,0.00018,2]
[426437267,1782388239000,-203.297254,0.00016438,2]
[426437270,1782388239000,-150.99,0.00016922,2]
[426437282,1782388239000,-1361.0,0.0001887,2]
[426437278,1782388239000,-441.52752205,0.000187,2]
[426437280,1782388239000,-165.813,0.0001887,2]
[426437274,1782388239000,-568.37,0.00018072,2]
[426437284,1782388239000,-216.0,0.0001887,2]
[426437269,1782388239000,-9999.99,0.00016922,2]
[426437289,1782388239000,-151.0,0.00019178,2]
[426437290,1782388239000,-151.0,0.00019178,2]
[426437276,1782388239000,-441.52752205,0.000184,2]
[426437287,1782388239000,-1592.14967332,0.00019,2]
[426437286,1782388239000,-762.82357454,0.00019,2]
[426437297,1782388239000,-151.0,0.00020223,2]
[426437281,1782388239000,-1230.0,0.0001887,2]
[426437277,1782388239000,-441.52752205,0.000185,2]
[426437275,1782388239000,-441.52752205,0.000182,2]
[426437283,1782388239000,-1277.0,0.0001887,2]
[426437279,1782388239000,-3562.0,0.0001887,2]
[426437273,1782388239000,-350.0,0.00018,2]
[426437285,1782388239000,-935.0,0.0001887,2]
[426437360,1782388240000,-196.04866834,0.00023722,2]
[426437359,1782388240000,-184.65094879,0.00023722,2]
[426437361,1782388240000,-170.41171031,0.00023722,2]
[426437362,1782388240000,-161.16017518,0.00023828,2]
[426437358,1782388240000,-169.35861412,0.00023722,2]
[426437353,1782388240000,-183.99619535,0.00023709,2]
[426437357,1782388240000,-178.76964299,0.00023722,2]
[426437356,1782388240000,-159.01026548,0.00023722,2]
[426437363,1782388240000,-353.33702037,0.00023828,2]
[426437354,1782388240000,-182.67059803,0.00023709,2]
[426437375,1782388240000,-199.620293,0.00024658,2]
[426437355,1782388240000,-165.39695493,0.00023709,2]
[426437365,1782388240000,-161.16017518,0.00024102,2]
[426437385,1782388240000,-3562.0,0.0002487,2]
[426437366,1782388240000,-944.87,0.00024139,7]
[426437364,1782388240000,-500.0,0.00024,2]
[426437368,1782388240000,-886.02,0.00024174,2]
[426437369,1782388240000,-161.16017518,0.00024376,2]
[426437371,1782388240000,-150.0,0.00024458,2]
[426437372,1782388240000,-161.16017518,0.0002465,2]
[426437374,1782388240000,-199.620293,0.00024658,2]
[426437370,1782388240000,-353.33702037,0.00024376,2]
[426437373,1782388240000,-151.0,0.00024658,2]
[426437384,1782388240000,-199.59,0.00024658,2]
[426437376,1782388240000,-199.620293,0.00024658,2]
[426437352,1782388240000,-170.61969248,0.00023709,2]
[426437367,1782388240000,-502.49,0.00024174,2]
[426437346,1782388240000,-161.16017518,0.0002328,2]
[426437324,1782388240000,-1337.65758947,0.00021613,2]
[426437348,1782388240000,-1500.0,0.0002328,2]
[426437327,1782388240000,-1361.0,0.0002187,2]
[426437322,1782388240000,-392.80638109,0.00021613,2]
[426437325,1782388240000,-3562.0,0.0002187,2]
[426437321,1782388240000,-150.758,0.00021458,2]
[426437323,1782388240000,-224.60734172,0.00021613,2]
[426437326,1782388240000,-1230.0,0.0002187,2]
[426437337,1782388240000,-2451.0,0.00022233,5]
[426437335,1782388240000,-1123.55,0.00022,2]
[426437336,1782388240000,-1291.0,0.00022233,5]
[426437338,1782388240000,-2358.0,0.00022233,5]
[426437339,1782388240000,-944.87,0.00022283,2]
[426437328,1782388240000,-1277.0,0.0002187,2]
[426437330,1782388240000,-935.0,0.0002187,2]
[426437334,1782388240000,-450.0,0.00022,2]
[426437329,1782388240000,-216.0,0.0002187,2]
[426437333,1782388240000,-168.06,0.00022,14]
[426437331,1782388240000,-5000.0,0.00021918,2]
[426437332,1782388240000,-288757.77543616,0.00022,4]
[426437342,1782388240000,-1500.0,0.00022732,2]
[426437343,1782388240000,-285.7899795,0.00022732,2]
[426437340,1782388240000,-161.16017518,0.00022732,2]
[426437378,1782388240000,-151.0,0.00024658,2]
[426437344,1782388240000,-451.24431856,0.00022898,2]
[426437345,1782388240000,-161.16017518,0.00023006,2]
[426437349,1782388240000,-161.16017518,0.00023554,2]
[426437347,1782388240000,-353.33702037,0.0002328,2]
[426437350,1782388240000,-168.96056574,0.00023709,2]
[426437351,1782388240000,-178.46993408,0.00023709,2]
[426437386,1782388240000,-1230.0,0.0002487,2]
[426437341,1782388240000,-353.33702037,0.00022732,2]
[426437380,1782388240000,-151.0,0.00024658,2]
[426437415,1782388240000,-161.16017518,0.00025472,2]
[426437417,1782388240000,-50000.0,0.000255,2]
[426437413,1782388240000,-1123.55,0.00025139,7]
[426437421,1782388240000,-17208.76427476,0.000258,2]
[426437423,1782388240000,-333.14387694,0.00025808,2]
[426437418,1782388240000,-161.16017518,0.00025746,2]
[426437419,1782388240000,-502.49,0.00025786,2]
[426437416,1782388240000,-353.33702037,0.00025472,2]
[426437422,1782388240000,-340.98511631,0.00025808,2]
[426437420,1782388240000,-886.02,0.00025786,2]
[426437427,1782388240000,-214.9773431,0.00025808,2]
[426437425,1782388240000,-506.88169721,0.00025808,2]
[426437432,1782388240000,-384.86010138,0.00025811,2]
[426437434,1782388240000,-477.03079643,0.00025822,2]
[426437433,1782388240000,-303.23331932,0.00025811,2]
[426437430,1782388240000,-511.85907743,0.00025808,2]
[426437426,1782388240000,-396.34489016,0.00025808,2]
[426437431,1782388240000,-233.65996833,0.00025811,2]
[426437436,1782388240000,-536.30892897,0.00025822,2]
[426437429,1782388240000,-551.98858606,0.00025808,2]
[426437435,1782388240000,-241.824005,0.00025822,2]
[426437428,1782388240000,-220.87614427,0.00025808,2]
[426437438,1782388240000,-508.07584237,0.00025822,2]
[426437441,1782388240000,-225.65906331,0.00025822,2]
[426437440,1782388240000,-226.98404352,0.00025822,2]
[426437437,1782388240000,-244.35875289,0.00025822,2]
[426437439,1782388240000,-182.71763444,0.00025822,2]
[426437424,1782388240000,-308.74098253,0.00025808,2]
[426437414,1782388240000,-161.16017518,0.00025198,2]
[426437381,1782388240000,-151.0,0.00024658,2]
[426437411,1782388240000,-340.82342062,0.00024982,2]
[426437404,1782388240000,-171.85469268,0.00024982,2]
[426437377,1782388240000,-199.620293,0.00024658,2]
[426437387,1782388240000,-1361.0,0.0002487,2]
[426437379,1782388240000,-1000.0,0.00024658,2]
[426437382,1782388240000,-199.19,0.00024658,2]
[426437383,1782388240000,-199.31,0.00024658,2]
[426437389,1782388240000,-216.0,0.0002487,2]
[426437399,1782388240000,-318.02053096,0.00024982,2]
[426437390,1782388240000,-935.0,0.0002487,2]
[426437388,1782388240000,-1277.0,0.0002487,2]
[426437391,1782388240000,-161.16017518,0.00024924,2]
[426437392,1782388240000,-353.33702037,0.00024924,2]
[426437396,1782388240000,-367.9923907,0.00024968,2]
[426437397,1782388240000,-192.43005069,0.00024971,2]
[426437400,1782388240000,-357.53928598,0.00024982,2]
[426437395,1782388240000,-341.23938495,0.00024968,2]
[426437393,1782388240000,-337.92113148,0.00024968,2]
[426437410,1782388240000,-392.09733669,0.00024982,2]
[426437402,1782388240000,-206.20286772,0.00024982,2]
[426437405,1782388240000,-190.73374298,0.00024982,2]
[426437407,1782388240000,-154.37523111,0.00024982,2]
[426437406,1782388240000,-236.57001889,0.00024982,2]
[426437412,1782388240000,-10251.35,0.00025,2]
[426437409,1782388240000,-369.30189759,0.00024982,2]
[426437403,1782388240000,-211.05628814,0.00024982,2]
[426437401,1782388240000,-338.71722824,0.00024982,2]
[426437394,1782388240000,-198.17244508,0.00024968,2]
[426437398,1782388240000,-151.61665966,0.00024971,2]
[426437408,1782388240000,-200.54967326,0.00024982,2]
[426437486,1782388241000,-205.71897818,0.00026368,2]
[426437488,1782388241000,-735.98478141,0.00026368,2]
[426437482,1782388241000,-225.45705522,0.00026368,2]
[426437489,1782388241000,-730.6823921,0.00026368,2]
[426437480,1782388241000,-269.64533584,0.00026368,2]
[426437477,1782388241000,-352.67459047,0.00026368,2]
[426437479,1782388241000,-207.38344849,0.00026368,2]
[426437485,1782388241000,-348.27868424,0.00026368,2]
[426437487,1782388241000,-682.4787699,0.00026368,2]
[426437484,1782388241000,-293.38024879,0.00026368,2]
[426437478,1782388241000,-429.95468619,0.00026368,2]
[426437481,1782388241000,-347.86392188,0.00026368,2]
[426437483,1782388241000,-713.87973631,0.00026368,2]
[426437506,1782388241000,-229.23931035,0.00026382,2]
[426437501,1782388241000,-422.25643775,0.00026371,2]
[426437495,1782388241000,-661.58781972,0.00026368,2]
[426437492,1782388241000,-225.05718808,0.00026368,2]
[426437494,1782388241000,-302.07166391,0.00026368,2]
[426437496,1782388241000,-224.84111168,0.00026371,2]
[426437493,1782388241000,-208.71710544,0.00026368,2]
[426437490,1782388241000,-259.1973397,0.00026368,2]
[426437497,1782388241000,-467.31993667,0.00026371,2]
[426437499,1782388241000,-270.35660849,0.00026371,2]
[426437498,1782388241000,-577.29015208,0.00026371,2]
[426437500,1782388241000,-454.84997898,0.00026371,2]
[426437502,1782388241000,-636.04106191,0.00026382,2]
[426437472,1782388241000,-511.47767447,0.00026368,2]
[426437491,1782388241000,-201.58988695,0.00026368,2]
[426437470,1782388241000,-353.33702037,0.0002602,2]
[426437463,1782388241000,-277.24712806,0.00025822,2]
[426437473,1782388241000,-499.71581541,0.00026368,2]
[426437504,1782388241000,-198.16311345,0.00026382,2]
[426437451,1782388241000,-200.28152374,0.00025822,2]
[426437448,1782388241000,-236.73726067,0.00025822,2]
[426437443,1782388241000,-422.11257627,0.00025822,2]
[426437442,1782388241000,-412.40573545,0.00025822,2]
[426437450,1782388241000,-381.46748596,0.00025822,2]
[426437449,1782388241000,-211.12821887,0.00025822,2]
[426437444,1782388241000,-203.03037623,0.00025822,2]
[426437446,1782388241000,-343.70938536,0.00025822,2]
[426437452,1782388241000,-177.53114353,0.00025822,2]
[426437454,1782388241000,-308.75046222,0.00025822,2]
[426437456,1782388241000,-201.07983396,0.00025822,2]
[426437462,1782388241000,-229.27873098,0.00025822,2]
[426437474,1782388241000,-463.1114738,0.00026368,2]
[426437455,1782388241000,-217.3265159,0.00025822,2]
[426437453,1782388241000,-473.14003778,0.00025822,2]
[426437457,1782388241000,-243.70122352,0.00025822,2]
[426437459,1782388241000,-209.11123862,0.00025822,2]
[426437460,1782388241000,-553.95284638,0.00025822,2]
[426437468,1782388241000,-2000.0,0.00026,2]
[426437465,1782388241000,-944.87,0.00025994,7]
[426437476,1782388241000,-594.51733524,0.00026368,2]
[426437469,1782388241000,-161.16017518,0.0002602,2]
[426437467,1782388241000,-550.0,0.00026,2]
[426437466,1782388241000,-10218.61727431,0.00026,5]
[426437475,1782388241000,-675.84226295,0.00026368,2]
[426437464,1782388241000,-511.23513092,0.00025822,2]
[426437471,1782388241000,-161.16017525,0.00026294,2]
[426437458,1782388241000,-401.09934652,0.00025822,2]
[426437505,1782388241000,-230.21285825,0.00026382,2]
[426437461,1782388241000,-588.14600503,0.00025822,2]
[426437510,1782388241000,-488.71750578,0.00026382,2]
[426437543,1782388241000,-738.60379518,0.00026382,2]
[426437551,1782388241000,-1899904.61528927,0.000268,2]
[426437542,1782388241000,-418.22247724,0.00026382,2]
[426437540,1782388241000,-487.40244705,0.00026382,2]
[426437545,1782388241000,-458.55746196,0.00026382,2]
[426437546,1782388241000,-554.49425611,0.00026382,2]
[426437547,1782388241000,-231.69620458,0.00026382,2]
[426437550,1782388241000,-1992.76295809,0.000268,15]
[426437548,1782388241000,-681.64684123,0.00026382,2]
[426437549,1782388241000,-353.33702037,0.00026568,2]
[426437567,1782388241000,-199.620293,0.000268,2]
[426437544,1782388241000,-784.19467338,0.00026382,2]
[426437552,1782388241000,-151.0,0.000268,2]